[Event "Late-Titled-Tuesday-Blitz-September-05-2023"]
[Site "Chess.com"]
[Date "2023.09.05"]
[Round "3"]
[White "Sacbutt"]
[Black "maksimys18"]
[Result "0-1"]
[WhiteElo "2262"]
[BlackElo "2495"]
[TimeControl "180+1"]
[EndTime "14:28:33 PDT"]
[Termination "maksimys18 won on time"]

1. d4 {[%clk 0:03:00.9]} 1... e6 {[%clk 0:03:00.9]} 2. c4 {[%clk 0:03:01.2]}
2... d5 {[%clk 0:03:01.2]} 3. Nc3 {[%clk 0:03:01.2]} 3... Be7 {[%clk 0:03:01.3]}
4. Nf3 {[%clk 0:03:01.2]} 4... Nf6 {[%clk 0:03:01.4]} 5. Bg5 {[%clk 0:03:01.4]}
5... O-O {[%clk 0:03:01.5]} 6. e3 {[%clk 0:03:01.8]} 6... h6 {[%clk 0:03:01.5]}
7. Bh4 {[%clk 0:03:01.8]} 7... c5 {[%clk 0:03:00.8]} 8. cxd5 {[%clk 0:02:57.1]}
8... Nxd5 {[%clk 0:03:00.2]} 9. Bxe7 {[%clk 0:02:55.4]} 9... Qxe7 {[%clk
0:03:01.1]} 10. Nxd5 {[%clk 0:02:52.4]} 10... exd5 {[%clk 0:03:01]} 11. Be2
{[%clk 0:02:52.6]} 11... Nc6 {[%clk 0:03:00.4]} 12. O-O {[%clk 0:02:51.8]} 12...
cxd4 {[%clk 0:03:00.1]} 13. Nxd4 {[%clk 0:02:51.7]} 13... Be6 {[%clk 0:02:57.8]}
14. Bf3 {[%clk 0:02:47.8]} 14... Nxd4 {[%clk 0:02:57.7]} 15. Qxd4 {[%clk
0:02:47.4]} 15... Rfd8 {[%clk 0:02:57.5]} 16. Rac1 {[%clk 0:02:41.8]} 16... b6
{[%clk 0:02:57.3]} 17. Rfd1 {[%clk 0:02:32.4]} 17... Rd7 {[%clk 0:02:52.6]} 18.
h3 {[%clk 0:02:29.4]} 18... Rad8 {[%clk 0:02:52]} 19. Rd2 {[%clk 0:02:28]} 19...
Rc7 {[%clk 0:02:48.5]} 20. Rdc2 {[%clk 0:02:15.7]} 20... Rdc8 {[%clk 0:02:39.1]}
21. Rxc7 {[%clk 0:01:58.3]} 21... Rxc7 {[%clk 0:02:40]} 22. Rxc7 {[%clk
0:01:44.4]} 22... Qxc7 {[%clk 0:02:40.9]} 23. a3 {[%clk 0:01:20.7]} 23... Qc1+
{[%clk 0:02:37.2]} 24. Kh2 {[%clk 0:01:20.5]} 24... Qc6 {[%clk 0:02:36.7]} 25.
b3 {[%clk 0:01:16.7]} 25... Qd6+ {[%clk 0:02:35.9]} 26. g3 {[%clk 0:01:14.2]}
26... Qxa3 {[%clk 0:02:24.2]} 27. Bxd5 {[%clk 0:00:52.1]} 27... Bxd5 {[%clk
0:02:22.8]} 28. Qxd5 {[%clk 0:00:51.9]} 28... Qe7 {[%clk 0:02:19.9]} 29. Qa8+
{[%clk 0:00:51.4]} 29... Kh7 {[%clk 0:02:19.6]} 30. Qd5 {[%clk 0:00:51.8]} 30...
Qf6 {[%clk 0:02:17.7]} 31. Qe4+ {[%clk 0:00:50.8]} 31... g6 {[%clk 0:02:17.5]}
32. Kg2 {[%clk 0:00:49.8]} 32... a5 {[%clk 0:02:17.2]} 33. Qc4 {[%clk
0:00:46.3]} 33... Qe6 {[%clk 0:02:15]} 34. Qb5 {[%clk 0:00:39.8]} 34... h5
{[%clk 0:02:14]} 35. h4 {[%clk 0:00:39.6]} 35... Qd6 {[%clk 0:02:11.7]} 36. Kf3
{[%clk 0:00:38.7]} 36... Qf6+ {[%clk 0:02:08]} 37. Ke2 {[%clk 0:00:38.4]} 37...
Kg7 {[%clk 0:02:04.9]} 38. f4 {[%clk 0:00:36.2]} 38... Qe6 {[%clk 0:02:00.9]}
39. Kf3 {[%clk 0:00:35.2]} 39... Qg4+ {[%clk 0:01:59.3]} 40. Kf2 {[%clk
0:00:34.6]} 40... Qe6 {[%clk 0:01:56]} 41. Kf3 {[%clk 0:00:35]} 41... f5 {[%clk
0:01:52.3]} 42. Ke2 {[%clk 0:00:31.1]} 42... Kf6 {[%clk 0:01:48.9]} 43. Kd3
{[%clk 0:00:30]} 43... Ke7 {[%clk 0:01:47.4]} 44. Qc4 {[%clk 0:00:23.7]} 44...
Qd7+ {[%clk 0:01:32.5]} 45. Kc3 {[%clk 0:00:20.6]} 45... b5 {[%clk 0:01:24.7]}
46. Qc5+ {[%clk 0:00:19.7]} 46... Kf7 {[%clk 0:01:20.8]} 47. Qe5 {[%clk
0:00:14.6]} 47... b4+ {[%clk 0:01:17.7]} 48. Kc4 {[%clk 0:00:12.4]} 48... Qc6+
{[%clk 0:01:06.4]} 49. Kd3 {[%clk 0:00:09.4]} 49... a4 {[%clk 0:00:58.4]} 50.
bxa4 {[%clk 0:00:07.9]} 50... b3 {[%clk 0:00:58.6]} 0-1

[Event "Late-Titled-Tuesday-Blitz-September-05-2023"]
[Site "Chess.com"]
[Date "2023.09.05"]
[Round "3"]
[White "Casablanca"]
[Black "Murad_Ibrahimli"]
[Result "0-1"]
[WhiteElo "2636"]
[BlackElo "2919"]
[TimeControl "180+1"]
[EndTime "14:28:35 PDT"]
[Termination "Murad_Ibrahimli won by resignation"]

1. d4 {[%clk 0:03:00.9]} 1... Nf6 {[%clk 0:02:59.3]} 2. c4 {[%clk 0:03:00.6]}
2... e6 {[%clk 0:02:59.4]} 3. Nc3 {[%clk 0:03:00.5]} 3... Bb4 {[%clk 0:02:58.7]}
4. e3 {[%clk 0:03:00.9]} 4... c5 {[%clk 0:02:56.5]} 5. Ne2 {[%clk 0:03:01]} 5...
b6 {[%clk 0:02:51.7]} 6. a3 {[%clk 0:03:00.8]} 6... Ba5 {[%clk 0:02:52.2]} 7.
Rb1 {[%clk 0:03:00.7]} 7... Na6 {[%clk 0:02:52.6]} 8. g3 {[%clk 0:02:59.3]} 8...
Bb7 {[%clk 0:02:50.8]} 9. d5 {[%clk 0:02:59.4]} 9... b5 {[%clk 0:02:19.6]} 10.
Bg2 {[%clk 0:02:58.1]} 10... bxc4 {[%clk 0:02:19]} 11. O-O {[%clk 0:02:58.4]}
11... Rb8 {[%clk 0:02:14]} 12. Qa4 {[%clk 0:02:41.9]} 12... O-O {[%clk
0:02:08.8]} 13. Qxc4 {[%clk 0:02:41.2]} 13... e5 {[%clk 0:01:53]} 14. h3 {[%clk
0:01:49.3]} 14... d6 {[%clk 0:01:52.6]} 15. g4 {[%clk 0:01:49.4]} 15... Nc7
{[%clk 0:01:52.2]} 16. g5 {[%clk 0:01:43.3]} 16... Ba6 {[%clk 0:01:40.8]} 17.
Qh4 {[%clk 0:01:00.2]} 17... Bxc3 {[%clk 0:01:40.4]} 18. Nxc3 {[%clk 0:01:00.7]}
18... Bxf1 {[%clk 0:01:39.6]} 19. Bxf1 {[%clk 0:01:01.6]} 19... Nfxd5 {[%clk
0:01:38.3]} 20. Ne4 {[%clk 0:00:56.7]} 20... Ne7 {[%clk 0:01:37.4]} 21. Bd3
{[%clk 0:00:52.2]} 21... Ng6 {[%clk 0:01:36.4]} 22. Qh5 {[%clk 0:00:41.3]} 22...
c4 {[%clk 0:01:36.2]} 23. Bc2 {[%clk 0:00:40.6]} 23... d5 {[%clk 0:01:36.3]} 24.
Ng3 {[%clk 0:00:39.6]} 24... d4 {[%clk 0:01:36.3]} 25. exd4 {[%clk 0:00:39.7]}
25... exd4 {[%clk 0:01:37.2]} 26. Be4 {[%clk 0:00:33.9]} 26... d3 {[%clk
0:01:36.8]} 27. Bd2 {[%clk 0:00:34.3]} 27... Re8 {[%clk 0:01:36.5]} 28. Bc3
{[%clk 0:00:33.9]} 28... Nd5 {[%clk 0:01:11.7]} 29. Bxg7 {[%clk 0:00:30.8]}
29... Kxg7 {[%clk 0:01:03.7]} 30. Qh6+ {[%clk 0:00:22.7]} 30... Kh8 {[%clk
0:01:03.4]} 31. Nh5 {[%clk 0:00:18.5]} 31... Rg8 {[%clk 0:00:42.7]} 32. Bxd5
{[%clk 0:00:15]} 32... Qf8 {[%clk 0:00:31.8]} 33. Qxf8 {[%clk 0:00:11.4]} 33...
Rgxf8 {[%clk 0:00:29.6]} 34. Bxc4 {[%clk 0:00:12.3]} 34... Ne5 {[%clk
0:00:28.5]} 35. Bd5 {[%clk 0:00:11.6]} 35... Rfd8 {[%clk 0:00:28.3]} 36. Be4
{[%clk 0:00:09.1]} 36... d2 {[%clk 0:00:27.8]} 37. Bc2 {[%clk 0:00:09]} 37...
Rbc8 {[%clk 0:00:27.5]} 38. Bd1 {[%clk 0:00:09.6]} 38... Rc1 {[%clk 0:00:28]}
39. Rxc1 {[%clk 0:00:09.7]} 39... dxc1=Q {[%clk 0:00:28.7]} 0-1

[Event "Late-Titled-Tuesday-Blitz-September-05-2023"]
[Site "Chess.com"]
[Date "2023.09.05"]
[Round "3"]
[White "JackRodgers"]
[Black "kacprekt"]
[Result "1-0"]
[WhiteElo "2607"]
[BlackElo "2434"]
[TimeControl "180+1"]
[EndTime "14:28:37 PDT"]
[Termination "JackRodgers won by resignation"]

1. d4 {[%clk 0:03:00.9]} 1... d6 {[%clk 0:03:00.9]} 2. Bg5 {[%clk 0:02:58.6]}
2... h6 {[%clk 0:02:58.2]} 3. Bh4 {[%clk 0:02:58.4]} 3... Nd7 {[%clk 0:02:49.9]}
4. e4 {[%clk 0:02:48.2]} 4... Ngf6 {[%clk 0:02:47.9]} 5. Nd2 {[%clk 0:02:44.1]}
5... e5 {[%clk 0:02:47.2]} 6. c3 {[%clk 0:02:42.7]} 6... Be7 {[%clk 0:02:45.8]}
7. Bc4 {[%clk 0:02:39]} 7... c6 {[%clk 0:02:45]} 8. Bb3 {[%clk 0:02:35.2]} 8...
Qc7 {[%clk 0:02:44.5]} 9. Ne2 {[%clk 0:02:33.8]} 9... Nf8 {[%clk 0:02:42.1]} 10.
O-O {[%clk 0:02:32]} 10... g5 {[%clk 0:02:42.1]} 11. Bg3 {[%clk 0:02:32.4]}
11... Ng6 {[%clk 0:02:42.3]} 12. f3 {[%clk 0:02:21.6]} 12... Kf8 {[%clk
0:02:41.7]} 13. Qc2 {[%clk 0:02:17.3]} 13... Nf4 {[%clk 0:02:41.3]} 14. Nxf4
{[%clk 0:02:06.7]} 14... gxf4 {[%clk 0:02:42.2]} 15. Bh4 {[%clk 0:02:06.9]}
15... Rg8 {[%clk 0:02:34.4]} 16. Kh1 {[%clk 0:02:05.1]} 16... Be6 {[%clk
0:02:31]} 17. Bxe6 {[%clk 0:01:59.5]} 17... fxe6 {[%clk 0:02:31.9]} 18. dxe5
{[%clk 0:01:58.2]} 18... dxe5 {[%clk 0:02:32]} 19. Rad1 {[%clk 0:01:54.2]} 19...
Nh5 {[%clk 0:02:26.2]} 20. Bf2 {[%clk 0:01:49.2]} 20... Kf7 {[%clk 0:02:18.4]}
21. Nc4 {[%clk 0:01:47.4]} 21... Rg5 {[%clk 0:02:14]} 22. Bh4 {[%clk 0:01:40.2]}
22... Ng3+ {[%clk 0:02:06]} 23. hxg3 {[%clk 0:01:32.5]} 23... Rh5 {[%clk
0:02:06.4]} 24. Kg1 {[%clk 0:01:13.3]} 24... fxg3 {[%clk 0:02:06.1]} 25. Bxg3
{[%clk 0:01:12]} 25... Bc5+ {[%clk 0:02:04.2]} 26. Bf2 {[%clk 0:01:10]} 26...
Qe7 {[%clk 0:01:51]} 27. b4 {[%clk 0:01:07.4]} 27... Bxf2+ {[%clk 0:01:43.8]}
28. Kxf2 {[%clk 0:01:07.4]} 28... Rg8 {[%clk 0:01:41.4]} 29. Rh1 {[%clk
0:00:54]} 29... Qg5 {[%clk 0:01:32.5]} 30. g4 {[%clk 0:00:52.6]} 30... Rh4
{[%clk 0:01:20]} 31. Qd2 {[%clk 0:00:46]} 31... Qf6 {[%clk 0:01:11.9]} 32. Nxe5+
{[%clk 0:00:35.5]} 32... Kg7 {[%clk 0:01:02.4]} 33. Qd7+ {[%clk 0:00:34]} 33...
Kh8 {[%clk 0:01:02.6]} 34. Nf7+ {[%clk 0:00:28.6]} 34... Kg7 {[%clk 0:01:02]}
35. Ng5+ {[%clk 0:00:23.2]} 35... Kg6 {[%clk 0:00:59.7]} 36. Rxh4 {[%clk
0:00:16.1]} 36... Qxg5 {[%clk 0:00:57.6]} 37. Rdh1 {[%clk 0:00:15.3]} 37... Rh8
{[%clk 0:00:49.2]} 38. Qxe6+ {[%clk 0:00:15.2]} 38... Kg7 {[%clk 0:00:49.4]} 39.
Rh5 {[%clk 0:00:14.6]} 39... Qd2+ {[%clk 0:00:47.6]} 40. Kg3 {[%clk 0:00:15.3]}
40... Qe3 {[%clk 0:00:37.1]} 41. Rf5 {[%clk 0:00:12.6]} 1-0

[Event "Late-Titled-Tuesday-Blitz-September-05-2023"]
[Site "Chess.com"]
[Date "2023.09.05"]
[Round "3"]
[White "PapaieDudu"]
[Black "The_Straightforward_Rook"]
[Result "1-0"]
[WhiteElo "2302"]
[BlackElo "2489"]
[TimeControl "180+1"]
[EndTime "14:28:37 PDT"]
[Termination "PapaieDudu won by checkmate"]

1. e4 {[%clk 0:03:00.9]} 1... e5 {[%clk 0:02:59.8]} 2. f4 {[%clk 0:03:00.3]}
2... exf4 {[%clk 0:02:59.4]} 3. Nf3 {[%clk 0:03:00]} 3... Nf6 {[%clk 0:03:00]}
4. e5 {[%clk 0:02:57.1]} 4... Nh5 {[%clk 0:02:59.9]} 5. Bc4 {[%clk 0:02:53.9]}
5... d5 {[%clk 0:02:54.9]} 6. Be2 {[%clk 0:02:43.5]} 6... g5 {[%clk 0:02:47.2]}
7. a3 {[%clk 0:02:34.7]} 7... Nc6 {[%clk 0:02:44.8]} 8. d4 {[%clk 0:02:33.6]}
8... g4 {[%clk 0:02:42.3]} 9. O-O {[%clk 0:02:22.9]} 9... gxf3 {[%clk
0:02:40.2]} 10. Bxf3 {[%clk 0:02:23.4]} 10... Ng7 {[%clk 0:02:40.4]} 11. Bxf4
{[%clk 0:02:22.1]} 11... Bf5 {[%clk 0:02:34.3]} 12. Nc3 {[%clk 0:02:16.2]} 12...
Be6 {[%clk 0:02:15.9]} 13. Qd2 {[%clk 0:01:41.5]} 13... Qd7 {[%clk 0:02:14.1]}
14. b4 {[%clk 0:01:39.4]} 14... O-O-O {[%clk 0:02:09.9]} 15. Kh1 {[%clk
0:01:11.6]} 15... Nf5 {[%clk 0:02:09.1]} 16. Ne2 {[%clk 0:00:59.1]} 16... Nce7
{[%clk 0:02:02.4]} 17. g3 {[%clk 0:00:40.9]} 17... Kb8 {[%clk 0:01:58.6]} 18.
Rab1 {[%clk 0:00:40.1]} 18... h5 {[%clk 0:01:57.6]} 19. b5 {[%clk 0:00:39.4]}
19... Bh6 {[%clk 0:01:54.4]} 20. a4 {[%clk 0:00:39.1]} 20... Bxf4 {[%clk
0:01:51.2]} 21. Nxf4 {[%clk 0:00:40]} 21... Ng6 {[%clk 0:01:45.5]} 22. Nd3
{[%clk 0:00:38.2]} 22... h4 {[%clk 0:01:38.3]} 23. g4 {[%clk 0:00:35]} 23... Nh6
{[%clk 0:01:28.7]} 24. Nc5 {[%clk 0:00:34.9]} 24... Qc8 {[%clk 0:01:27.7]} 25.
h3 {[%clk 0:00:31.2]} 25... b6 {[%clk 0:01:18.1]} 26. Na6+ {[%clk 0:00:22.8]}
26... Kb7 {[%clk 0:01:14.7]} 27. c4 {[%clk 0:00:20.6]} 27... Nxg4 {[%clk
0:00:58.1]} 28. hxg4 {[%clk 0:00:18.3]} 28... Bxg4 {[%clk 0:00:59]} 29. Bxd5+
{[%clk 0:00:10.2]} 29... Rxd5 {[%clk 0:00:59]} 30. cxd5 {[%clk 0:00:10.8]} 30...
Qd7 {[%clk 0:00:45]} 31. Qg2 {[%clk 0:00:09.6]} 31... h3 {[%clk 0:00:23.5]} 32.
Qe4 {[%clk 0:00:09.5]} 32... Rc8 {[%clk 0:00:18.5]} 33. d6+ {[%clk 0:00:08.9]}
33... c6 {[%clk 0:00:19]} 34. Nc5+ {[%clk 0:00:09.4]} 34... bxc5 {[%clk
0:00:18.7]} 35. bxc6+ {[%clk 0:00:10.1]} 35... Ka6 {[%clk 0:00:18.9]} 36. cxd7
{[%clk 0:00:10.3]} 36... Rd8 {[%clk 0:00:18.5]} 37. Qb7+ {[%clk 0:00:10.7]}
37... Ka5 {[%clk 0:00:18.1]} 38. Qb5# {[%clk 0:00:11.6]} 1-0

[Event "Late-Titled-Tuesday-Blitz-September-05-2023"]
[Site "Chess.com"]
[Date "2023.09.05"]
[Round "3"]
[White "PabloZarnicki"]
[Black "Lennis93"]
[Result "0-1"]
[WhiteElo "2536"]
[BlackElo "2831"]
[TimeControl "180+1"]
[EndTime "14:28:40 PDT"]
[Termination "Lennis93 won on time"]

1. e4 {[%clk 0:03:00.9]} 1... c6 {[%clk 0:02:59.2]} 2. d4 {[%clk 0:03:00]} 2...
d5 {[%clk 0:03:00.1]} 3. Nc3 {[%clk 0:03:00.6]} 3... dxe4 {[%clk 0:03:00.4]} 4.
Nxe4 {[%clk 0:03:01.3]} 4... Bf5 {[%clk 0:03:00.9]} 5. Ng3 {[%clk 0:03:00.9]}
5... Bg6 {[%clk 0:03:01.5]} 6. h4 {[%clk 0:03:01.5]} 6... h6 {[%clk 0:03:01.9]}
7. Nf3 {[%clk 0:03:02.1]} 7... Nd7 {[%clk 0:03:02.4]} 8. h5 {[%clk 0:03:02.6]}
8... Bh7 {[%clk 0:03:02.3]} 9. Bd3 {[%clk 0:03:03.3]} 9... Bxd3 {[%clk
0:03:02.8]} 10. Qxd3 {[%clk 0:03:04.2]} 10... e6 {[%clk 0:03:03.4]} 11. Bf4
{[%clk 0:03:04]} 11... Qa5+ {[%clk 0:02:57.2]} 12. Bd2 {[%clk 0:03:04.1]} 12...
Qc7 {[%clk 0:02:56.5]} 13. O-O-O {[%clk 0:03:03.5]} 13... Ngf6 {[%clk
0:02:56.5]} 14. Ne4 {[%clk 0:03:03.5]} 14... Rd8 {[%clk 0:02:48.9]} 15. g3
{[%clk 0:03:00.3]} 15... Nxe4 {[%clk 0:02:46.6]} 16. Qxe4 {[%clk 0:03:00.1]}
16... Nf6 {[%clk 0:02:39]} 17. Qe2 {[%clk 0:02:59.9]} 17... Be7 {[%clk
0:02:34.5]} 18. Kb1 {[%clk 0:02:51.2]} 18... b5 {[%clk 0:02:25.3]} 19. Bf4
{[%clk 0:02:46.7]} 19... Qa5 {[%clk 0:02:21.9]} 20. Ne5 {[%clk 0:02:46]} 20...
Rc8 {[%clk 0:02:07.8]} 21. Rhe1 {[%clk 0:02:45.9]} 21... O-O {[%clk 0:02:07.3]}
22. g4 {[%clk 0:02:44.6]} 22... Nd5 {[%clk 0:02:05.7]} 23. Bd2 {[%clk
0:02:43.7]} 23... b4 {[%clk 0:02:06.1]} 24. Qc4 {[%clk 0:02:11.2]} 24... c5
{[%clk 0:02:04.2]} 25. f4 {[%clk 0:01:52.7]} 25... cxd4 {[%clk 0:02:02.9]} 26.
Qxd4 {[%clk 0:01:53]} 26... Nc3+ {[%clk 0:01:13.3]} 27. Bxc3 {[%clk 0:01:02.9]}
27... bxc3 {[%clk 0:01:14.2]} 28. b3 {[%clk 0:00:34.8]} 28... Qa3 {[%clk
0:01:09.2]} 29. Nd3 {[%clk 0:00:34.3]} 29... Rfd8 {[%clk 0:00:53.6]} 30. Qa4
{[%clk 0:00:33.6]} 30... Qxa4 {[%clk 0:00:53.9]} 31. bxa4 {[%clk 0:00:33.7]}
31... Rd4 {[%clk 0:00:54.2]} 32. f5 {[%clk 0:00:27.2]} 32... Rc6 {[%clk
0:00:40.3]} 33. fxe6 {[%clk 0:00:25.8]} 33... fxe6 {[%clk 0:00:40]} 34. Ne5
{[%clk 0:00:18.9]} 34... Rb6+ {[%clk 0:00:40.1]} 35. Ka1 {[%clk 0:00:18.8]}
35... Rxa4 {[%clk 0:00:34.7]} 36. Re3 {[%clk 0:00:09.1]} 36... Rb2 {[%clk
0:00:25.8]} 0-1

[Event "Late-Titled-Tuesday-Blitz-September-05-2023"]
[Site "Chess.com"]
[Date "2023.09.05"]
[Round "3"]
[White "Nikachu"]
[Black "emeli_chess"]
[Result "0-1"]
[WhiteElo "2162"]
[BlackElo "2366"]
[TimeControl "180+1"]
[EndTime "14:28:41 PDT"]
[Termination "emeli_chess won on time"]

1. e4 {[%clk 0:03:00.9]} 1... c5 {[%clk 0:02:59.6]} 2. Nf3 {[%clk 0:03:00.6]}
2... d6 {[%clk 0:02:59.7]} 3. d4 {[%clk 0:03:01.1]} 3... cxd4 {[%clk 0:03:00.2]}
4. Nxd4 {[%clk 0:03:02]} 4... Nf6 {[%clk 0:03:00.5]} 5. Nc3 {[%clk 0:03:02.6]}
5... a6 {[%clk 0:03:01.1]} 6. Bc4 {[%clk 0:03:02.6]} 6... e6 {[%clk 0:03:01]} 7.
Bb3 {[%clk 0:03:01.5]} 7... Nbd7 {[%clk 0:03:00.9]} 8. g4 {[%clk 0:03:01.7]}
8... Nc5 {[%clk 0:03:00.7]} 9. f3 {[%clk 0:03:01.2]} 9... Be7 {[%clk 0:02:56.1]}
10. g5 {[%clk 0:03:00.1]} 10... Nfd7 {[%clk 0:02:53.2]} 11. Rg1 {[%clk
0:03:00.2]} 11... O-O {[%clk 0:02:51.6]} 12. Be3 {[%clk 0:02:59]} 12... Qc7
{[%clk 0:02:44]} 13. Qe2 {[%clk 0:02:54.6]} 13... b5 {[%clk 0:02:42.7]} 14.
O-O-O {[%clk 0:02:54.7]} 14... b4 {[%clk 0:02:42.6]} 15. Na4 {[%clk 0:02:53.1]}
15... Nxb3+ {[%clk 0:02:40.1]} 16. axb3 {[%clk 0:02:52.6]} 16... Nc5 {[%clk
0:02:40.1]} 17. Kb1 {[%clk 0:02:34.4]} 17... Bd7 {[%clk 0:02:38.4]} 18. Qc4
{[%clk 0:02:19.1]} 18... Rfc8 {[%clk 0:02:33.9]} 19. h4 {[%clk 0:01:12.1]} 19...
Nxa4 {[%clk 0:02:25.1]} 20. Qxc7 {[%clk 0:01:13]} 20... Rxc7 {[%clk 0:02:24.7]}
21. bxa4 {[%clk 0:01:13.5]} 21... Bxa4 {[%clk 0:02:24.5]} 22. b3 {[%clk
0:01:13.9]} 22... Bd7 {[%clk 0:02:14]} 23. f4 {[%clk 0:01:13.8]} 23... a5 {[%clk
0:02:12.6]} 24. f5 {[%clk 0:01:13.9]} 24... a4 {[%clk 0:02:10.6]} 25. f6 {[%clk
0:00:58.9]} 25... Bf8 {[%clk 0:02:09.9]} 26. bxa4 {[%clk 0:00:58.7]} 26... Rxa4
{[%clk 0:02:06.5]} 27. h5 {[%clk 0:00:58.1]} 27... Rca7 {[%clk 0:02:02.3]} 28.
Nb3 {[%clk 0:00:58.1]} 28... R7a6 {[%clk 0:01:54.5]} 29. Bd4 {[%clk 0:00:53.9]}
29... Bc6 {[%clk 0:01:49.9]} 30. Rde1 {[%clk 0:00:48.1]} 30... Bb5 {[%clk
0:01:21.8]} 31. g6 {[%clk 0:00:43.8]} 31... fxg6 {[%clk 0:01:16.5]} 32. hxg6
{[%clk 0:00:42.9]} 32... h6 {[%clk 0:01:16.1]} 33. f7+ {[%clk 0:00:41.5]} 33...
Kh8 {[%clk 0:01:15.9]} 34. Rh1 {[%clk 0:00:39.5]} 34... e5 {[%clk 0:01:16]} 35.
Bb2 {[%clk 0:00:30.9]} 35... Bc4 {[%clk 0:01:11.3]} 36. Re3 {[%clk 0:00:24.2]}
36... Be6 {[%clk 0:01:09.1]} 37. Nd2 {[%clk 0:00:15.9]} 37... Ra7 {[%clk
0:01:05]} 38. Nf3 {[%clk 0:00:15.1]} 38... Bxf7 {[%clk 0:01:03.6]} 39. gxf7
{[%clk 0:00:14.1]} 39... Rxf7 {[%clk 0:01:03.5]} 40. Nh4 {[%clk 0:00:14.5]}
40... Kh7 {[%clk 0:01:02.2]} 41. Nf5 {[%clk 0:00:14.5]} 41... Rf6 {[%clk
0:00:57]} 42. Rg3 {[%clk 0:00:11.7]} 42... Rg6 {[%clk 0:00:56]} 43. Rxg6 {[%clk
0:00:10.5]} 43... Kxg6 {[%clk 0:00:56.2]} 44. Rg1+ {[%clk 0:00:11.4]} 44... Kf7
{[%clk 0:00:56.2]} 45. Kc1 {[%clk 0:00:08.8]} 45... g5 {[%clk 0:00:53.6]} 46.
Ne3 {[%clk 0:00:08.6]} 46... Kg6 {[%clk 0:00:52]} 47. Rf1 {[%clk 0:00:04.4]}
47... Ra8 {[%clk 0:00:50.4]} 48. Nd5 {[%clk 0:00:01.9]} 48... h5 {[%clk
0:00:49.2]} 0-1

[Event "Late-Titled-Tuesday-Blitz-September-05-2023"]
[Site "Chess.com"]
[Date "2023.09.05"]
[Round "3"]
[White "jcmesafischer"]
[Black "lupta_robin"]
[Result "0-1"]
[WhiteElo "2442"]
[BlackElo "2613"]
[TimeControl "180+1"]
[EndTime "14:28:42 PDT"]
[Termination "lupta_robin won by resignation"]

1. Nf3 {[%clk 0:02:08.3]} 1... Nf6 {[%clk 0:02:58.9]} 2. d4 {[%clk 0:02:08]}
2... c6 {[%clk 0:02:57.7]} 3. g3 {[%clk 0:02:07]} 3... g6 {[%clk 0:02:57.8]} 4.
Bg2 {[%clk 0:02:07.3]} 4... Bg7 {[%clk 0:02:58.4]} 5. O-O {[%clk 0:02:07.7]}
5... O-O {[%clk 0:02:59]} 6. c4 {[%clk 0:02:07.5]} 6... d6 {[%clk 0:02:59.6]} 7.
Nc3 {[%clk 0:02:07.3]} 7... Nbd7 {[%clk 0:02:59.9]} 8. e4 {[%clk 0:02:07.4]}
8... e5 {[%clk 0:03:00.4]} 9. d5 {[%clk 0:02:07.6]} 9... cxd5 {[%clk 0:02:59.7]}
10. cxd5 {[%clk 0:02:07.5]} 10... a6 {[%clk 0:02:59.7]} 11. a4 {[%clk 0:02:05]}
11... Nc5 {[%clk 0:02:45.9]} 12. Ne1 {[%clk 0:01:53.8]} 12... a5 {[%clk
0:02:38.4]} 13. Be3 {[%clk 0:01:46.8]} 13... Nfd7 {[%clk 0:02:25.9]} 14. Nd3
{[%clk 0:01:29.5]} 14... b6 {[%clk 0:02:22.9]} 15. Nb5 {[%clk 0:01:22.5]} 15...
Ba6 {[%clk 0:02:23.3]} 16. Ra3 {[%clk 0:01:04.8]} 16... Bxb5 {[%clk 0:02:19.9]}
17. axb5 {[%clk 0:01:04.5]} 17... Nxd3 {[%clk 0:02:20.3]} 18. Qxd3 {[%clk
0:01:04.2]} 18... Nc5 {[%clk 0:02:20.8]} 19. Bxc5 {[%clk 0:00:57.9]} 19... bxc5
{[%clk 0:02:21.7]} 20. b3 {[%clk 0:00:54.2]} 20... Qb6 {[%clk 0:02:18.4]} 21.
Rfa1 {[%clk 0:00:53.5]} 21... f5 {[%clk 0:02:13.7]} 22. Bf1 {[%clk 0:00:52]}
22... fxe4 {[%clk 0:02:08.1]} 23. Qxe4 {[%clk 0:00:51.9]} 23... c4 {[%clk
0:02:08.6]} 24. bxc4 {[%clk 0:00:42]} 24... Qxf2+ {[%clk 0:01:58.1]} 25. Kh1
{[%clk 0:00:41.4]} 25... Bh6 {[%clk 0:01:57.7]} 26. Bg2 {[%clk 0:00:31.6]} 26...
Bd2 {[%clk 0:01:47.4]} 27. R3a2 {[%clk 0:00:24.6]} 27... Qe3 {[%clk 0:01:09.9]}
28. Qxe3 {[%clk 0:00:23.7]} 28... Bxe3 {[%clk 0:01:10.7]} 29. Rxa5 {[%clk
0:00:21.8]} 29... Rac8 {[%clk 0:01:07.4]} 30. R5a4 {[%clk 0:00:17.2]} 30... Rf2
{[%clk 0:01:03.2]} 31. Re1 {[%clk 0:00:12.5]} 31... Bc5 {[%clk 0:01:00.3]} 32.
Bh3 {[%clk 0:00:11.5]} 32... Rcf8 {[%clk 0:00:59.9]} 33. Raa1 {[%clk 0:00:06.1]}
33... Kg7 {[%clk 0:00:53.2]} 34. Rf1 {[%clk 0:00:05.5]} 34... e4 {[%clk
0:00:52.4]} 35. Rxf2 {[%clk 0:00:04.5]} 35... Rxf2 {[%clk 0:00:53.3]} 36. Rf1
{[%clk 0:00:04.2]} 36... Rc2 {[%clk 0:00:52.3]} 37. Re1 {[%clk 0:00:02.3]} 37...
Rxc4 {[%clk 0:00:47.6]} 38. Bg4 {[%clk 0:00:02.4]} 38... e3 {[%clk 0:00:45.1]}
39. Bf3 {[%clk 0:00:02.1]} 39... Rb4 {[%clk 0:00:43.4]} 40. Re2 {[%clk
0:00:02.2]} 40... Rxb5 {[%clk 0:00:43.4]} 41. Kg2 {[%clk 0:00:02.8]} 41... Rb3
{[%clk 0:00:43.1]} 42. h4 {[%clk 0:00:03.3]} 42... Kf6 {[%clk 0:00:43.3]} 43. g4
{[%clk 0:00:03.8]} 43... Ke5 {[%clk 0:00:43.4]} 44. g5 {[%clk 0:00:04.3]} 44...
Kf4 {[%clk 0:00:43.1]} 45. Re1 {[%clk 0:00:03.1]} 45... Rb2+ {[%clk 0:00:43.1]}
46. Be2 {[%clk 0:00:03.7]} 46... Bb4 {[%clk 0:00:41.8]} 47. Rf1+ {[%clk
0:00:03.6]} 47... Ke4 {[%clk 0:00:42.5]} 0-1